fUSD/lending_fUSD_20240107
["ID","MTS","AMOUNT","RATE_DAILY","PERIOD"]
[310637626,1704601849206,-500.0,0.00022889,2]
[310637627,1704601849215,-500.0,0.00022889,2]
[310637628,1704601849224,-500.0,0.00022889,2]
[310637629,1704601849234,-500.0,0.00022889,2]
[310637630,1704601849243,-500.0,0.00022889,2]
[310637631,1704601849253,-500.0,0.00022889,2]
[310637632,1704601849262,-500.0,0.00022889,2]
[310637633,1704601849271,-500.0,0.00022889,2]
[310637634,1704601849281,-500.0,0.00022889,2]
[310637635,1704601849290,-500.0,0.00022889,2]
[310637636,1704601849300,-500.0,0.00022889,2]
[310637637,1704601849310,-500.0,0.00022889,2]
[310637638,1704601849320,-500.0,0.00022889,2]
[310637639,1704601849330,-500.0,0.00022889,2]
[310637640,1704601849340,-500.0,0.00022889,2]
[310637641,1704601849349,-500.0,0.00022889,2]
[310637642,1704601849359,-500.0,0.00022889,2]
[310637643,1704601849369,-500.0,0.00022889,2]
[310637644,1704601849379,-500.0,0.00022889,2]
[310637645,1704601849389,-500.0,0.00022889,2]
[310637646,1704601849398,-500.0,0.00022889,2]
[310637647,1704601849412,-500.0,0.00022889,2]
[310637648,1704601849422,-500.0,0.00022889,2]
[310637649,1704601849433,-572.74367044,0.00022889,2]
[310637650,1704601849444,-500.0,0.00022889,2]
[310637651,1704601849481,-500.0,0.00022889,2]
[310637652,1704601849491,-500.0,0.00022889,2]
[310637653,1704601849501,-500.0,0.00022889,2]
[310637654,1704601849511,-500.0,0.00022889,2]
[310637655,1704601849522,-500.0,0.00022889,2]
[310637656,1704601849533,-339.03513864,0.00022889,2]
[310637657,1704601849544,-500.0,0.00022889,2]
[310637658,1704601849554,-500.0,0.00022889,2]
[310637659,1704601849563,-500.0,0.00022889,2]
[310637660,1704601849573,-500.0,0.00022889,2]
[310637661,1704601849583,-500.0,0.00022889,2]
[310637662,1704601849593,-500.0,0.00022889,2]
[310637663,1704601849603,-166.01312424,0.00022889,2]
[310637664,1704601849613,-500.0,0.00022889,2]
[310637665,1704601849623,-500.0,0.00022889,2]
[310637666,1704601849632,-500.0,0.00022889,2]
[310637667,1704601849642,-500.0,0.00022889,2]
[310637668,1704601849654,-500.0,0.00022889,2]
[310637669,1704601849663,-500.0,0.00022889,2]
[310637670,1704601849673,-963.1,0.00022889,2]
[310637671,1704601849683,-500.0,0.00022889,2]
[310637672,1704601849693,-967.9,0.00022889,2]
[310637673,1704601849703,-913.18,0.00022889,2]
[310637674,1704601849714,-500.0,0.00022889,2]
[310637675,1704601849724,-603.49,0.00022889,2]
[310637676,1704601849734,-670.49,0.00022889,2]
[310637677,1704601849744,-944.61,0.00022889,2]
[310637678,1704601849753,-459.3678483,0.00022889,2]
[310637679,1704601849764,-500.0,0.00022889,2]
[310637680,1704601849774,-500.0,0.00022889,2]
[310637681,1704601849787,-500.0,0.00022889,2]
[310637682,1704601849799,-500.0,0.00022889,2]
[310637683,1704601849811,-500.0,0.00022889,2]
[310637684,1704601849821,-520.41741651,0.00022889,2]
[310637685,1704601849832,-500.0,0.00022889,2]
[310637686,1704601849842,-500.0,0.00022889,2]
[310637687,1704601849855,-579.15553399,0.00022889,2]
[310637688,1704601849868,-500.0,0.00022889,2]
[310637689,1704601849879,-500.0,0.00022889,2]
[310637690,1704601849891,-635.03241271,0.00022889,2]
[310637691,1704601849903,-500.0,0.00022889,2]
[310637692,1704601849914,-500.0,0.00022889,2]
[310637693,1704601849924,-500.0,0.00022889,2]
[310637694,1704601849934,-500.0,0.00022889,2]
[310637695,1704601849945,-500.0,0.00022889,2]
[310637696,1704601849956,-500.0,0.00022889,2]
[310637697,1704601849967,-500.0,0.00022889,2]
[310637698,1704601849979,-500.0,0.00022889,2]
[310637699,1704601849990,-500.0,0.00022889,2]
[310637700,1704601850003,-500.0,0.00022889,2]
[310637701,1704601850014,-500.0,0.00022889,2]
[310637702,1704601850024,-500.0,0.00022889,2]
[310637703,1704601850037,-500.0,0.00022889,2]
[310637704,1704601850047,-500.0,0.00022889,2]
[310637705,1704601850058,-500.0,0.00022889,2]
[310637706,1704601850069,-500.0,0.00022889,2]
[310637707,1704601850080,-500.0,0.00022889,2]
[310637708,1704601850092,-500.0,0.00022889,2]
[310637709,1704601850103,-500.0,0.00022889,2]
[310637710,1704601850114,-500.0,0.00022889,2]
[310637711,1704601850125,-500.0,0.00022889,2]
[310637712,1704601850135,-500.0,0.00022889,2]
[310637713,1704601850146,-500.0,0.00022889,2]
[310637714,1704601850157,-97440.86558197,0.0002289,2]
[310637715,1704601850172,-500.0,0.0002289,2]
[310637716,1704601850185,-1045.79908187,0.0002289,2]
[310637717,1704601850254,-1500.0,0.0002289,2]
[310637718,1704601850266,-1136.0779978,0.0002289,2]
[310637719,1704601850317,-2003.51399994,0.0002289,2]
[310637720,1704601850329,-1159.48593754,0.0002289,2]
[310637721,1704601850664,-500.0,0.00022793,2]
[310637722,1704601850675,-500.0,0.00022793,2]
[310637723,1704601850686,-286.38,0.00022794,2]
[310637724,1704601850697,-27613.563098,0.0002289,2]
[310637725,1704601850753,-500.0,0.00022793,2]
[310637726,1704601850763,-27.85352507,0.00022794,2]
[310637728,1704601867014,1000.0,0.00021745,2]
[310637733,1704601932372,228.49,0.00021901,2]
[310637740,1704602044217,204.0,0.00022206,2]
[310637741,1704602051444,160.48,0.00022085,2]
[310637742,1704602060242,163.38,0.00021856,2]
[310637743,1704602060462,163.38,0.00022221,2]
[310637749,1704602142971,284.58,0.00019823,2]
[310637750,1704602143203,284.58,0.00022087,2]
[310637752,1704602166909,5618.38,0.00022492,2]
[310637754,1704602177934,194.36566796,0.00021742,2]
[310637755,1704602177975,77.83433204,0.00021742,2]
[310637756,1704602180043,538.5,0.00021742,2]
[310637764,1704602318990,162.06,0.00021742,2]
[310637772,1704602458676,213.25,0.00021741,2]
[310637783,1704602644366,256.12,0.00019822,2]
[310637784,1704602644582,256.12,0.00022086,2]
[310637785,1704602650471,569.2,0.00021744,2]
[310637789,1704602698915,19075.68081962,0.0003,120]
[310637810,1704602866536,199.03,0.00021745,2]
[310637852,1704603032037,-288.29485518,0.00022498,2]
[310637854,1704603032047,-899.40561229,0.00022499,2]
[310637856,1704603032059,-3096.93884709,0.00022499,2]
[310637860,1704603032089,-553.09839258,0.00022499,2]
[310637861,1704603032146,-283.86,0.00022499,2]
[310637862,1704603032158,-848.00726828,0.00022499,2]
[310637863,1704603032168,-1089.77094149,0.000225,2]
[310637864,1704603032201,-471.45137151,0.000225,2]
[310637865,1704603032210,-163.38,0.00022585,2]
[310637866,1704603032220,-150.0,0.00022647,2]
[310637867,1704603032230,-150.99,0.00022656,2]
[310637868,1704603032244,-44.9232671,0.00022656,2]
[310637869,1704603032257,-105.0767329,0.00022656,2]
[310637870,1704603032267,-150.0,0.00022677,2]
[310637871,1704603032279,-150.0,0.00022681,2]
[310637872,1704603032288,-951.16,0.00022682,2]
[310637873,1704603032299,-150.0,0.00022691,2]
[310637874,1704603032309,-150.0,0.00022692,2]
[310637875,1704603032321,-2500.0,0.00022692,2]
[310637876,1704603032334,-341.97169482,0.00022693,2]
[310637877,1704603032344,-167.22019687,0.00022693,2]
[310637878,1704603032354,-150.0,0.00022694,2]
[310637879,1704603032363,-150.0,0.00022703,2]
[310637880,1704603032372,-1500.0,0.00022714,2]
[310637881,1704603032384,-150.0,0.00022722,2]
[310637882,1704603032393,-150.0,0.00022723,2]
[310637883,1704603032402,-199.03,0.00022724,2]
[310637884,1704603032411,-150.0,0.00022726,2]
[310637885,1704603032423,-341.97169482,0.00022761,2]
[310637886,1704603032432,-150.0,0.00022766,2]
[310637887,1704603032442,-150.0,0.0002277,2]
[310637888,1704603032451,-150.0,0.0002277,2]
[310637889,1704603032460,-150.0,0.00022772,2]
[310637890,1704603032472,-150.0,0.00022773,2]
[310637891,1704603032482,-150.0,0.00022774,2]
[310637892,1704603032492,-2199.60450878,0.0002278,2]
[310637893,1704603032502,-21954.82848546,0.0002279,2]
[310637894,1704603032814,-718.14860685,0.0002279,2]
[310637911,1704603040748,-817.83680266,0.00022761,3]
[310637916,1704603040802,-301.81601854,0.00022761,3]
[310637924,1704603040914,-622.2612095,0.00022761,3]
[310637925,1704603040923,-54668.48852005,0.0002279,2]
[310637929,1704603040969,-22658.53438764,0.0002279,2]
[310637931,1704603040980,-500.0,0.00022791,2]
[310637933,1704603040989,-500.0,0.00022791,2]
[310637935,1704603040998,-500.0,0.00022791,2]
[310637950,1704603041249,-784.4,0.00022791,2]
[310637951,1704603041258,-500.0,0.00022791,2]
[310637952,1704603041268,-500.0,0.00022791,2]
[310637953,1704603041277,-500.0,0.00022791,2]
[310637954,1704603041286,-500.0,0.00022791,2]
[310637955,1704603041297,-500.0,0.00022791,2]
[310637956,1704603041306,-500.0,0.00022791,2]
[310637957,1704603041315,-565.11,0.00022791,2]
[310637958,1704603041325,-500.0,0.00022791,2]
[310637959,1704603041334,-1222.11,0.00022791,2]
[310637960,1704603041343,-500.0,0.00022791,2]
[310637961,1704603041352,-500.0,0.00022791,2]
[310637962,1704603041361,-535.4,0.00022791,2]
[310637963,1704603041370,-500.0,0.00022791,2]
[310637964,1704603041379,-500.0,0.00022791,2]
[310637965,1704603041389,-1443.01,0.00022791,2]
[310637966,1704603041398,-500.0,0.00022791,2]
[310637967,1704603041407,-9147.34,0.00022791,2]
[310637968,1704603041416,-500.0,0.00022791,2]
[310637969,1704603041425,-500.0,0.00022791,2]
[310637970,1704603041435,-500.0,0.00022791,2]
[310637971,1704603041444,-6952.71,0.00022791,2]
[310637972,1704603041453,-500.0,0.00022791,2]
[310637973,1704603041462,-500.0,0.00022791,2]
[310637974,1704603041471,-281.53,0.00022791,2]
[310637975,1704603041480,-500.0,0.00022791,2]
[310637976,1704603041490,-500.0,0.00022791,2]
[310637977,1704603041500,-440.50236382,0.00022791,2]
[310637978,1704603041509,-500.0,0.00022791,2]
[310637979,1704603041520,-581.18512785,0.00022792,2]
[310637980,1704603041531,-500.0,0.00022792,2]
[310637981,1704603041543,-500.0,0.00022792,2]
[310637982,1704603041553,-500.0,0.00022792,2]
[310637983,1704603041563,-517.91466963,0.00022792,2]
[310637984,1704603041574,-500.0,0.00022792,2]
[310637985,1704603041584,-500.0,0.00022792,2]
[310637986,1704603041593,-500.0,0.00022792,2]
[310637987,1704603041603,-500.0,0.00022792,2]
[310637988,1704603041612,-500.0,0.00022792,2]
[310637989,1704603041623,-500.0,0.00022792,2]
[310637990,1704603041632,-500.0,0.00022792,2]
[310637991,1704603041641,-500.0,0.00022792,2]
[310637992,1704603041651,-500.0,0.00022792,2]
[310637993,1704603041661,-500.0,0.00022792,2]
[310637994,1704603041671,-331.74363637,0.00022792,2]
[310637995,1704603041681,-500.0,0.00022792,2]
[310637996,1704603041692,-500.0,0.00022792,2]
[310637997,1704603041701,-514.53726143,0.00022792,2]
[310637998,1704603041711,-500.0,0.00022792,2]
[310637999,1704603041721,-150.0,0.00022792,2]
[310638000,1704603041731,-500.0,0.00022792,2]
[310638002,1704603041740,-500.0,0.00022792,2]
[310638003,1704603041749,-500.0,0.00022792,2]
[310638004,1704603041759,-500.0,0.00022792,2]
[310638005,1704603041768,-500.0,0.00022792,2]
[310638006,1704603041777,-519.15,0.00022792,2]
[310638007,1704603041787,-500.0,0.00022792,2]
[310638008,1704603041796,-500.0,0.00022792,2]
[310638009,1704603041806,-500.0,0.00022792,2]
[310638010,1704603041815,-500.0,0.00022792,2]
[310638011,1704603041825,-500.0,0.00022792,2]
[310638012,1704603041834,-500.0,0.00022792,2]
[310638013,1704603041843,-500.0,0.00022792,2]
[310638014,1704603041852,-500.0,0.00022792,2]
[310638015,1704603041861,-500.0,0.00022792,2]
[310638016,1704603041871,-500.0,0.00022792,2]
[310638017,1704603041880,-500.0,0.00022792,2]
[310638018,1704603041889,-500.0,0.00022792,2]
[310638019,1704603041898,-500.0,0.00022792,2]
[310638020,1704603041908,-500.0,0.00022792,2]
[310638021,1704603041918,-500.0,0.00022792,2]
[310638022,1704603041927,-500.0,0.00022792,2]
[310638023,1704603041936,-500.0,0.00022792,2]
[310638024,1704603041949,-500.0,0.00022792,2]
[310638025,1704603041958,-236.9144725,0.00022792,2]
[310638026,1704603041967,-500.0,0.00022792,2]
[310638027,1704603041977,-500.0,0.00022792,2]
[310638028,1704603041986,-500.0,0.00022792,2]
[310638029,1704603041995,-500.0,0.00022792,2]
[310638030,1704603042005,-500.0,0.00022792,2]
[310638031,1704603042014,-500.0,0.00022792,2]
[310638032,1704603042023,-500.0,0.00022792,2]
[310638033,1704603042032,-500.0,0.00022792,2]
[310638034,1704603042042,-500.0,0.00022792,2]
[310638035,1704603042051,-500.0,0.00022792,2]
[310638036,1704603042060,-500.0,0.00022792,2]
[310638037,1704603042069,-500.0,0.00022792,2]
[310638038,1704603042078,-500.0,0.00022792,2]
[310638039,1704603042087,-500.0,0.00022792,2]
[310638040,1704603042096,-500.0,0.00022792,2]
[310638041,1704603042105,-193.84491926,0.00022792,2]
[310638042,1704603042114,-180.66,0.00022792,2]
[310638043,1704603042123,-500.0,0.00022792,2]
[310638044,1704603042132,-500.0,0.00022792,2]
[310638045,1704603042141,-500.0,0.00022792,2]
[310638046,1704603042150,-155.38635682,0.00022792,2]
[310638047,1704603042159,-500.0,0.00022792,2]
[310638048,1704603042169,-500.0,0.00022792,2]
[310638049,1704603042178,-500.0,0.00022792,2]
[310638050,1704603042187,-181.98254686,0.00022792,2]
[310638051,1704603042197,-3493.12,0.00022792,2]
[310638052,1704603042205,-500.0,0.00022792,2]
[310638053,1704603042214,-500.0,0.00022792,2]
[310638054,1704603042224,-500.0,0.00022792,2]
[310638055,1704603042234,-428.89619201,0.00022792,2]
[310638056,1704603042244,-500.0,0.00022792,2]
[310638057,1704603042253,-826.53,0.00022792,2]
[310638058,1704603042263,-500.0,0.00022792,2]
[310638059,1704603042272,-500.0,0.00022792,2]
[310638060,1704603042282,-526.04531213,0.00022792,2]
[310638061,1704603042292,-500.0,0.00022792,2]
[310638062,1704603042301,-500.0,0.00022792,2]
[310638063,1704603042310,-500.0,0.00022792,2]
[310638064,1704603042320,-500.0,0.00022792,2]
[310638065,1704603042329,-500.0,0.00022792,2]
[310638066,1704603042338,-500.0,0.00022792,2]
[310638067,1704603042347,-500.0,0.00022792,2]
[310638068,1704603042357,-500.0,0.00022792,2]
[310638069,1704603042366,-756.32,0.00022792,2]
[310638070,1704603042375,-500.0,0.00022792,2]
[310638071,1704603042385,-160.93617455,0.00022792,2]
[310638072,1704603042394,-500.0,0.00022792,2]
[310638073,1704603042403,-500.0,0.00022792,2]
[310638074,1704603042411,-500.0,0.00022792,2]
[310638075,1704603042421,-418.51913899,0.00022792,2]
[310638076,1704603042429,-500.0,0.00022792,2]
[310638077,1704603042438,-500.0,0.00022792,2]
[310638078,1704603042448,-500.0,0.00022792,2]
[310638079,1704603042457,-500.0,0.00022792,2]
[310638080,1704603042465,-500.0,0.00022792,2]
[310638081,1704603042474,-500.0,0.00022792,2]
[310638082,1704603042483,-398.6848377,0.00022792,2]
[310638083,1704603042492,-500.0,0.00022792,2]
[310638084,1704603042501,-500.0,0.00022792,2]
[310638085,1704603042510,-883.04,0.00022792,2]
[310638086,1704603042519,-500.0,0.00022792,2]
[310638087,1704603042528,-500.0,0.00022792,2]
[310638088,1704603042537,-500.0,0.00022792,2]
[310638089,1704603042547,-500.0,0.00022792,2]
[310638090,1704603042556,-1644.15,0.00022792,2]
[310638091,1704603042565,-500.0,0.00022792,2]
[310638092,1704603042574,-1000.0,0.00022792,2]
[310638093,1704603042583,-500.0,0.00022792,2]
[310638094,1704603042593,-500.0,0.00022792,2]
[310638095,1704603042603,-500.0,0.00022792,2]
[310638096,1704603042612,-500.0,0.00022792,2]
[310638097,1704603042621,-1671.24,0.00022792,2]
[310638098,1704603042630,-500.0,0.00022792,2]
[310638099,1704603042639,-500.0,0.00022792,2]
[310638100,1704603042649,-500.0,0.00022792,2]
[310638101,1704603042658,-500.0,0.00022792,2]
[310638102,1704603042666,-500.0,0.00022792,2]
[310638103,1704603042675,-500.0,0.00022792,2]
[310638104,1704603042684,-500.0,0.00022792,2]
[310638105,1704603042694,-500.0,0.00022792,2]
[310638106,1704603042703,-500.0,0.00022792,2]
[310638107,1704603042711,-500.0,0.00022792,2]
[310638108,1704603042720,-500.0,0.00022792,2]
[310638109,1704603042729,-500.0,0.00022792,2]
[310638110,1704603042738,-1602.13,0.00022792,2]
[310638111,1704603042750,-509.29904884,0.00022792,2]
[310638112,1704603042760,-500.0,0.00022792,2]
[310638113,1704603042770,-500.0,0.00022792,2]
[310638114,1704603042780,-381.85314733,0.00022792,2]
[310638115,1704603042790,-219.48166608,0.00022792,2]
[310638116,1704603042799,-500.0,0.00022792,2]
[310638117,1704603042808,-500.0,0.00022792,2]
[310638118,1704603042818,-500.0,0.00022792,2]
[310638119,1704603042829,-616.86,0.00022792,2]
[310638120,1704603042839,-500.0,0.00022792,2]
[310638121,1704603042848,-500.0,0.00022792,2]
[310638122,1704603042858,-178.70917879,0.00022792,2]
[310638123,1704603042867,-500.0,0.00022792,2]
[310638124,1704603042878,-506.98892435,0.00022792,2]
[310638125,1704603042887,-500.0,0.00022792,2]
[310638126,1704603042896,-500.0,0.00022792,2]
[310638127,1704603042905,-500.0,0.00022792,2]
[310638128,1704603042913,-507.25090492,0.00022792,2]
[310638129,1704603042923,-19697.06,0.00022792,2]
[310638130,1704603042932,-449.0,0.00022792,2]
[310638131,1704603042941,-500.0,0.00022792,2]
[310638132,1704603042950,-500.0,0.00022792,2]
[310638133,1704603042960,-500.0,0.00022792,2]
[310638134,1704603042969,-500.0,0.00022792,2]
[310638135,1704603042978,-500.0,0.00022792,2]
[310638136,1704603042987,-500.0,0.00022792,2]
[310638137,1704603042996,-500.0,0.00022792,2]
[310638138,1704603043006,-500.0,0.00022792,2]
[310638139,1704603043015,-500.0,0.00022792,2]
[310638140,1704603043024,-500.0,0.00022792,2]
[310638141,1704603043033,-500.0,0.00022792,2]
[310638142,1704603043042,-500.0,0.00022792,2]
[310638143,1704603043051,-856.97,0.00022792,2]
[310638144,1704603043061,-500.0,0.00022792,2]
[310638145,1704603043070,-500.0,0.00022792,2]
[310638146,1704603043079,-500.0,0.00022792,2]
[310638147,1704603043088,-500.0,0.00022792,2]
[310638148,1704603043098,-217.62300662,0.00022792,2]
[310638149,1704603043107,-500.0,0.00022792,2]
[310638150,1704603043116,-500.0,0.00022792,2]
[310638151,1704603043126,-500.0,0.00022792,2]
[310638152,1704603043135,-908.24,0.00022792,2]
[310638153,1704603043144,-500.0,0.00022792,2]
[310638154,1704603043153,-500.0,0.00022792,2]
[310638155,1704603043163,-500.0,0.00022792,2]
[310638156,1704603043172,-500.0,0.00022792,2]
[310638157,1704603043181,-500.0,0.00022792,2]
[310638158,1704603043190,-500.0,0.00022792,2]
[310638159,1704603043199,-500.0,0.00022792,2]
[310638160,1704603043208,-500.0,0.00022792,2]
[310638161,1704603043218,-887.42,0.00022792,2]
[310638162,1704603043227,-500.0,0.00022792,2]
[310638163,1704603043236,-799.03,0.00022792,2]
[310638164,1704603043245,-500.0,0.00022792,2]
[310638165,1704603043254,-586.68,0.00022792,2]
[310638166,1704603043263,-500.0,0.00022792,2]
[310638167,1704603043272,-528.05,0.00022792,2]
[310638168,1704603043281,-500.0,0.00022792,2]
[310638169,1704603043290,-500.0,0.00022793,2]
[310638170,1704603043299,-602.48211313,0.00022793,2]
[310638171,1704603043308,-500.0,0.00022793,2]
[310638172,1704603043317,-202.34335597,0.00022793,2]
[310638173,1704603043326,-500.0,0.00022793,2]
[310638174,1704603043335,-500.0,0.00022793,2]
[310638175,1704603043344,-500.0,0.00022793,2]
[310638176,1704603043353,-500.0,0.00022793,2]
[310638177,1704603043362,-500.0,0.00022793,2]
[310638178,1704603043371,-500.0,0.00022793,2]
[310638179,1704603043380,-260.42790989,0.00022793,2]
[310638180,1704603043389,-500.0,0.00022793,2]
[310638181,1704603043398,-500.0,0.00022793,2]
[310638182,1704603043406,-500.0,0.00022793,2]
[310638183,1704603043415,-500.0,0.00022793,2]
[310638184,1704603043424,-536.86,0.00022793,2]
[310638185,1704603043433,-500.0,0.00022793,2]
[310638186,1704603043442,-500.0,0.00022793,2]
[310638187,1704603043451,-500.0,0.00022793,2]
[310638188,1704603043460,-500.0,0.00022793,2]
[310638189,1704603043469,-500.0,0.00022793,2]
[310638190,1704603043478,-500.0,0.00022793,2]
[310638192,1704603043486,-505.76284646,0.00022793,2]
[310638193,1704603043495,-500.0,0.00022793,2]
[310638194,1704603043504,-500.0,0.00022793,2]
[310638195,1704603043513,-500.0,0.00022793,2]
[310638196,1704603043522,-557.99857281,0.00022793,2]
[310638197,1704603043531,-500.0,0.00022793,2]
[310638198,1704603043540,-506.85301995,0.00022793,2]
[310638199,1704603043550,-500.0,0.00022793,2]
[310638200,1704603043559,-500.0,0.00022793,2]
[310638201,1704603043568,-500.0,0.00022793,2]
[310638202,1704603043577,-500.0,0.00022793,2]
[310638203,1704603043587,-500.0,0.00022793,2]
[310638204,1704603043596,-500.0,0.00022793,2]
[310638205,1704603043604,-500.0,0.00022793,2]
[310638206,1704603043614,-634.32,0.00022793,2]
[310638207,1704603043623,-500.0,0.00022793,2]
[310638208,1704603043633,-341.79717174,0.00022793,2]
[310638209,1704603043642,-500.0,0.00022793,2]
[310638210,1704603043651,-500.0,0.00022793,2]
[310638211,1704603043659,-500.0,0.00022793,2]
[310638212,1704603043669,-500.0,0.00022793,2]
[310638213,1704603043677,-500.0,0.00022793,2]
[310638214,1704603043687,-500.0,0.00022793,2]
[310638215,1704603043696,-500.0,0.00022793,2]
[310638216,1704603043705,-506.28967884,0.00022793,2]
[310638217,1704603043714,-500.0,0.00022793,2]
[310638218,1704603043723,-500.0,0.00022793,2]
[310638219,1704603043732,-500.0,0.00022793,2]
[310638220,1704603043742,-500.0,0.00022793,2]
[310638221,1704603043751,-500.0,0.00022793,2]
[310638222,1704603043760,-500.0,0.00022793,2]
[310638223,1704603043769,-500.0,0.00022793,2]
[310638224,1704603043779,-500.0,0.00022793,2]
[310638225,1704603043788,-500.0,0.00022793,2]
[310638226,1704603043798,-500.0,0.00022793,2]
[310638227,1704603043807,-500.0,0.00022793,2]
[310638228,1704603043816,-500.0,0.00022793,2]
[310638229,1704603043828,-500.0,0.00022793,2]
[310638230,1704603043837,-500.0,0.00022793,2]
[310638231,1704603043846,-500.0,0.00022793,2]
[310638232,1704603043857,-500.0,0.00022793,2]
[310638233,1704603043867,-500.0,0.00022793,2]
[310638234,1704603043877,-500.0,0.00022793,2]
[310638235,1704603043889,-500.0,0.00022793,2]
[310638236,1704603043898,-500.0,0.00022793,2]
[310638237,1704603043907,-500.0,0.00022793,2]
[310638238,1704603043916,-500.0,0.00022793,2]
[310638239,1704603043926,-500.0,0.00022793,2]
[310638240,1704603043935,-500.0,0.00022793,2]
[310638241,1704603043944,-500.0,0.00022793,2]
[310638242,1704603043953,-500.0,0.00022793,2]
[310638243,1704603043963,-500.0,0.00022793,2]
[310638244,1704603043972,-500.0,0.00022793,2]
[310638245,1704603043982,-500.0,0.00022793,2]
[310638246,1704603043991,-500.0,0.00022793,2]
[310638247,1704603044000,-500.0,0.00022793,2]
[310638248,1704603044009,-500.0,0.00022793,2]
[310638249,1704603044018,-500.0,0.00022793,2]
[310638250,1704603044027,-500.0,0.00022793,2]
[310638251,1704603044037,-345.83029139,0.00022793,2]
[310638252,1704603044046,-500.0,0.00022793,2]
[310638253,1704603044055,-500.0,0.00022793,2]
[310638254,1704603044065,-500.0,0.00022793,2]
[310638255,1704603044074,-500.0,0.00022793,2]
[310638256,1704603044083,-500.0,0.00022793,2]
[310638257,1704603044092,-600.42411959,0.00022793,2]
[310638258,1704603044102,-514.15489769,0.00022793,2]
[310638259,1704603044111,-500.0,0.00022793,2]
[310638260,1704603044120,-500.0,0.00022793,2]
[310638261,1704603044129,-500.0,0.00022793,2]
[310638262,1704603044138,-500.0,0.00022793,2]
[310638263,1704603044147,-500.0,0.00022793,2]
[310638264,1704603044156,-500.0,0.00022793,2]
[310638265,1704603044165,-500.0,0.00022793,2]
[310638266,1704603044174,-500.0,0.00022793,2]
[310638267,1704603044184,-500.0,0.00022793,2]
[310638268,1704603044193,-500.0,0.00022793,2]
[310638269,1704603044202,-500.0,0.00022793,2]
[310638270,1704603044212,-500.0,0.00022793,2]
[310638271,1704603044221,-500.0,0.00022793,2]
[310638272,1704603044232,-500.0,0.00022793,2]
[310638273,1704603044244,-186.81606587,0.00022793,2]
[310638274,1704603044253,-500.0,0.00022793,2]
[310638275,1704603044263,-500.0,0.00022793,2]
[310638276,1704603044272,-500.0,0.00022793,2]
[310638277,1704603044283,-500.0,0.00022793,2]
[310638278,1704603044292,-500.0,0.00022793,2]
[310638279,1704603044302,-500.0,0.00022793,2]
[310638280,1704603044312,-500.0,0.00022793,2]
[310638281,1704603044321,-500.0,0.00022793,2]
[310638282,1704603044333,-500.0,0.00022793,2]
[310638283,1704603044342,-509.49537432,0.00022793,2]
[310638284,1704603044351,-500.0,0.00022793,2]
[310638285,1704603044361,-500.0,0.00022793,2]